[Event "*** Titled Tuesday Blitz"]
[Site "Chess.com"]
[Date "2020.12.01"]
[Round "2"]
[White "Shockerlover"]
[Black "Sergienko_Sergey"]
[Result "0-1"]
[WhiteElo "1872"]
[BlackElo "2338"]
[TimeControl "180+1"]
[EndTime "10:17:45 PST"]
[Termination "Sergienko_Sergey won by checkmate"]

1. d4 {[%clk 0:03:00.4]} 1... Nf6 {[%clk 0:02:59]} 2. Nf3 {[%clk 0:03:00.8]}
2... e6 {[%clk 0:02:55.7]} 3. c4 {[%clk 0:03:01.7]} 3... Nc6 {[%clk 0:02:52]} 4.
d5 {[%clk 0:02:52.8]} 4... Bb4+ {[%clk 0:02:49.7]} 5. Bd2 {[%clk 0:02:51.9]}
5... exd5 {[%clk 0:02:39.8]} 6. cxd5 {[%clk 0:02:42.2]} 6... Nxd5 {[%clk
0:02:24.6]} 7. Bxb4 {[%clk 0:02:39]} 7... Ndxb4 {[%clk 0:02:24.4]} 8. a3 {[%clk
0:02:38.9]} 8... Na6 {[%clk 0:02:23.6]} 9. e3 {[%clk 0:02:30.2]} 9... O-O {[%clk
0:02:19.5]} 10. Nc3 {[%clk 0:02:27.8]} 10... Nc5 {[%clk 0:02:13.3]} 11. b4
{[%clk 0:02:23.4]} 11... Ne6 {[%clk 0:02:11.6]} 12. Bd3 {[%clk 0:02:22.1]} 12...
d6 {[%clk 0:01:55.5]} 13. O-O {[%clk 0:02:21.4]} 13... Ne5 {[%clk 0:01:47.7]}
14. Bc2 {[%clk 0:02:18.8]} 14... Qf6 {[%clk 0:01:38.3]} 15. Ne4 {[%clk
0:02:08.6]} 15... Nxf3+ {[%clk 0:01:36.9]} 16. gxf3 {[%clk 0:02:01.5]} 16... Qh6
{[%clk 0:01:35.8]} 17. f4 {[%clk 0:01:56.4]} 17... Bd7 {[%clk 0:01:31.3]} 18.
Qd3 {[%clk 0:01:50.3]} 18... Bc6 {[%clk 0:01:19.9]} 19. Ng3 {[%clk 0:01:38.6]}
19... g6 {[%clk 0:01:08.8]} 20. f3 {[%clk 0:01:28.6]} 20... Rae8 {[%clk
0:01:03.8]} 21. Rf2 {[%clk 0:01:22.7]} 21... Ng7 {[%clk 0:00:51.3]} 22. f5
{[%clk 0:01:06.1]} 22... Qxe3 {[%clk 0:00:44.1]} 23. f6 {[%clk 0:00:43.6]} 23...
Qxd3 {[%clk 0:00:39.3]} 24. Bxd3 {[%clk 0:00:37]} 24... Ne6 {[%clk 0:00:39]} 25.
Rd1 {[%clk 0:00:33.8]} 25... Nf4 {[%clk 0:00:38.2]} 26. Bc4 {[%clk 0:00:32.5]}
26... Nh3+ {[%clk 0:00:37.1]} 27. Kg2 {[%clk 0:00:32]} 27... Nxf2 {[%clk
0:00:36.7]} 28. Kxf2 {[%clk 0:00:32.9]} 28... d5 {[%clk 0:00:31.7]} 29. Be2
{[%clk 0:00:29.8]} 29... Rd8 {[%clk 0:00:29.1]} 30. Rd4 {[%clk 0:00:29.2]} 30...
Bd7 {[%clk 0:00:24.3]} 31. Nf1 {[%clk 0:00:28.5]} 31... c6 {[%clk 0:00:23.6]}
32. Ne3 {[%clk 0:00:28.2]} 32... Rfe8 {[%clk 0:00:22.2]} 33. Rh4 {[%clk
0:00:26.8]} 33... Bc8 {[%clk 0:00:21.3]} 34. Rd4 {[%clk 0:00:26.2]} 34... Re5
{[%clk 0:00:20.7]} 35. h4 {[%clk 0:00:25.4]} 35... Rde8 {[%clk 0:00:19.3]} 36.
Rd3 {[%clk 0:00:22.6]} 36... d4 {[%clk 0:00:19.4]} 37. f4 {[%clk 0:00:06.1]}
37... Rxe3 {[%clk 0:00:18.1]} 38. Rxd4 {[%clk 0:00:05.5]} 38... Rxe2+ {[%clk
0:00:17.9]} 39. Kf3 {[%clk 0:00:06.4]} 39... Bf5 {[%clk 0:00:16.5]} 40. Kg3
{[%clk 0:00:06.3]} 40... R8e3# {[%clk 0:00:15.9]} 0-1

[Event "*** Titled Tuesday Blitz"]
[Site "Chess.com"]
[Date "2020.12.01"]
[Round "2"]
[White "scoopbh"]
[Black "javirec"]
[Result "0-1"]
[WhiteElo "2069"]
[BlackElo "2372"]
[TimeControl "180+1"]
[EndTime "10:17:46 PST"]
[Termination "javirec won by resignation"]

1. e4 {[%clk 0:03:00.1]} 1... c5 {[%clk 0:02:58.2]} 2. Nf3 {[%clk 0:02:59]} 2...
e6 {[%clk 0:02:58]} 3. d4 {[%clk 0:02:55.9]} 3... cxd4 {[%clk 0:02:58.9]} 4.
Nxd4 {[%clk 0:02:55.1]} 4... Nf6 {[%clk 0:02:59.6]} 5. Nc3 {[%clk 0:02:47.2]}
5... Nc6 {[%clk 0:03:00.1]} 6. Be3 {[%clk 0:02:22.6]} 6... Bb4 {[%clk
0:02:59.2]} 7. Bd3 {[%clk 0:02:16.4]} 7... d5 {[%clk 0:02:58.3]} 8. exd5 {[%clk
0:02:06.8]} 8... Nxd5 {[%clk 0:02:57.8]} 9. Nxc6 {[%clk 0:02:02.7]} 9... bxc6
{[%clk 0:02:57.2]} 10. Bd2 {[%clk 0:01:59.4]} 10... O-O {[%clk 0:02:56.9]} 11.
O-O {[%clk 0:01:55.4]} 11... Be7 {[%clk 0:02:53.7]} 12. Kh1 {[%clk 0:01:43.6]}
12... f5 {[%clk 0:02:49.1]} 13. f4 {[%clk 0:01:31]} 13... Bf6 {[%clk 0:02:47.1]}
14. Qe2 {[%clk 0:01:22.7]} 14... Qd6 {[%clk 0:02:44.3]} 15. Rae1 {[%clk
0:01:05.1]} 15... Bd7 {[%clk 0:02:43.9]} 16. a3 {[%clk 0:01:04.6]} 16... Rae8
{[%clk 0:02:42.4]} 17. Nxd5 {[%clk 0:00:57.8]} 17... exd5 {[%clk 0:02:42.5]} 18.
Qf2 {[%clk 0:00:57.9]} 18... c5 {[%clk 0:02:40.9]} 19. b3 {[%clk 0:00:50.1]}
19... g6 {[%clk 0:02:34.6]} 20. Re2 {[%clk 0:00:45.5]} 20... Rxe2 {[%clk
0:02:31.2]} 21. Qxe2 {[%clk 0:00:43]} 21... Re8 {[%clk 0:02:31.6]} 22. Qf3
{[%clk 0:00:42.2]} 22... Bc6 {[%clk 0:02:28.9]} 23. Re1 {[%clk 0:00:36.4]} 23...
Rxe1+ {[%clk 0:02:27.1]} 24. Bxe1 {[%clk 0:00:36]} 24... d4 {[%clk 0:02:27.1]}
25. Qe2 {[%clk 0:00:31.9]} 25... Kg7 {[%clk 0:02:20.2]} 26. Bd2 {[%clk 0:00:30]}
26... Qd5 {[%clk 0:02:17.4]} 27. Bc4 {[%clk 0:00:28.1]} 27... Qe4 {[%clk
0:02:17.6]} 28. Bd3 {[%clk 0:00:24]} 28... Qxe2 {[%clk 0:02:13]} 29. Bxe2 {[%clk
0:00:24.1]} 29... Be4 {[%clk 0:02:13.9]} 30. Bd1 {[%clk 0:00:23.9]} 30... Kf7
{[%clk 0:02:09.7]} 31. Kg1 {[%clk 0:00:24.1]} 31... Ke6 {[%clk 0:02:09.5]} 32.
Kf2 {[%clk 0:00:24.4]} 32... Kd5 {[%clk 0:02:09.7]} 33. g3 {[%clk 0:00:20.3]}
33... c4 {[%clk 0:01:46.6]} 34. bxc4+ {[%clk 0:00:19.5]} 34... Kxc4 {[%clk
0:01:47.5]} 35. Bb4 {[%clk 0:00:18.4]} 35... d3 {[%clk 0:01:40.2]} 36. cxd3+
{[%clk 0:00:17.3]} 36... Bxd3 {[%clk 0:01:37]} 37. Be2 {[%clk 0:00:17]} 37...
Bd4+ {[%clk 0:01:33.9]} 38. Ke1 {[%clk 0:00:16.5]} 38... Bg1 {[%clk 0:01:30.4]}
39. h3 {[%clk 0:00:13.5]} 39... Be3 {[%clk 0:01:13.8]} 40. Bd6 {[%clk
0:00:06.6]} 40... a5 {[%clk 0:00:54.8]} 41. Bxd3+ {[%clk 0:00:06.6]} 41... Kxd3
{[%clk 0:00:54.2]} 42. Kf1 {[%clk 0:00:06.1]} 42... a4 {[%clk 0:00:49.5]} 43.
Kg2 {[%clk 0:00:05.9]} 43... Bc1 {[%clk 0:00:44.9]} 44. Kf3 {[%clk 0:00:05]}
44... Kc3 {[%clk 0:00:43.2]} 45. g4 {[%clk 0:00:05.2]} 45... Kb3 {[%clk
0:00:42.6]} 46. gxf5 {[%clk 0:00:03.3]} 46... gxf5 {[%clk 0:00:43.5]} 47. h4
{[%clk 0:00:03]} 47... Bxa3 {[%clk 0:00:43]} 48. Be5 {[%clk 0:00:03.4]} 48...
Bb2 {[%clk 0:00:43]} 49. Bd6 {[%clk 0:00:03.6]} 49... a3 {[%clk 0:00:39.6]} 50.
Bxa3 {[%clk 0:00:03.3]} 50... Kxa3 {[%clk 0:00:40.2]} 51. Ke3 {[%clk 0:00:03.7]}
51... Kb4 {[%clk 0:00:40.5]} 0-1

[Event "*** Titled Tuesday Blitz"]
[Site "Chess.com"]
[Date "2020.12.01"]
[Round "2"]
[White "Luklei18"]
[Black "Chamal_Gedgafov"]
[Result "1-0"]
[WhiteElo "2410"]
[BlackElo "2163"]
[TimeControl "180+1"]
[EndTime "10:17:47 PST"]
[Termination "Luklei18 won on time"]

1. c4 {[%clk 0:03:00.2]} 1... Nf6 {[%clk 0:02:58.9]} 2. Nc3 {[%clk 0:03:00.4]}
2... c5 {[%clk 0:02:59.7]} 3. Nf3 {[%clk 0:03:00.5]} 3... Nc6 {[%clk 0:02:59.5]}
4. d4 {[%clk 0:03:00.5]} 4... cxd4 {[%clk 0:02:58.9]} 5. Nxd4 {[%clk 0:03:01.4]}
5... g6 {[%clk 0:02:55.7]} 6. e4 {[%clk 0:03:00.8]} 6... Bg7 {[%clk 0:02:54.9]}
7. Be3 {[%clk 0:02:54.4]} 7... d6 {[%clk 0:02:53.9]} 8. Be2 {[%clk 0:02:54.4]}
8... O-O {[%clk 0:02:53]} 9. O-O {[%clk 0:02:55]} 9... Bd7 {[%clk 0:02:50.7]}
10. Qd2 {[%clk 0:02:55.4]} 10... Re8 {[%clk 0:02:49.8]} 11. f3 {[%clk
0:02:49.6]} 11... a6 {[%clk 0:02:45.7]} 12. a3 {[%clk 0:02:46.1]} 12... Rc8
{[%clk 0:02:44.8]} 13. b4 {[%clk 0:02:45.7]} 13... Ne5 {[%clk 0:02:38.7]} 14.
Qa2 {[%clk 0:01:52]} 14... b5 {[%clk 0:02:16.1]} 15. Ncxb5 {[%clk 0:01:39.9]}
15... axb5 {[%clk 0:02:11.9]} 16. cxb5 {[%clk 0:01:40.8]} 16... Qc7 {[%clk
0:01:58.2]} 17. Rfc1 {[%clk 0:01:21.1]} 17... Qb7 {[%clk 0:01:57.6]} 18. a4
{[%clk 0:01:20.3]} 18... Rxc1+ {[%clk 0:01:40.3]} 19. Rxc1 {[%clk 0:01:21.2]}
19... Rc8 {[%clk 0:01:40.4]} 20. Rxc8+ {[%clk 0:01:04.7]} 20... Qxc8 {[%clk
0:01:41.3]} 21. Qc2 {[%clk 0:01:05.3]} 21... Qb7 {[%clk 0:01:29.5]} 22. a5
{[%clk 0:01:00.5]} 22... g5 {[%clk 0:01:06]} 23. b6 {[%clk 0:00:45.6]} 23... Ng6
{[%clk 0:00:39.8]} 24. Nb5 {[%clk 0:00:18.6]} 24... d5 {[%clk 0:00:35.6]} 25.
Qc7 {[%clk 0:00:11.6]} 25... Bc6 {[%clk 0:00:29.9]} 26. Qxb7 {[%clk 0:00:09.2]}
26... Bxb7 {[%clk 0:00:28.9]} 27. Nc7 {[%clk 0:00:09.6]} 27... dxe4 {[%clk
0:00:26.5]} 28. a6 {[%clk 0:00:09.8]} 28... Bxa6 {[%clk 0:00:20.2]} 29. Nxa6
{[%clk 0:00:08.8]} 29... exf3 {[%clk 0:00:21.1]} 30. Bxf3 {[%clk 0:00:08.1]}
30... g4 {[%clk 0:00:17.1]} 31. b7 {[%clk 0:00:08.1]} 31... gxf3 {[%clk
0:00:12.7]} 32. b8=Q+ {[%clk 0:00:08.2]} 32... Nf8 {[%clk 0:00:13.6]} 33. gxf3
{[%clk 0:00:08.3]} 33... Nd5 {[%clk 0:00:12.7]} 34. Bc5 {[%clk 0:00:08.4]} 34...
e6 {[%clk 0:00:11.3]} 35. Nc7 {[%clk 0:00:08.5]} 35... Nxc7 {[%clk 0:00:10.4]}
36. Qxc7 {[%clk 0:00:09.4]} 36... h5 {[%clk 0:00:07.3]} 37. Bxf8 {[%clk
0:00:09.2]} 37... Bxf8 {[%clk 0:00:06]} 38. b5 {[%clk 0:00:09.9]} 1-0

[Event "*** Titled Tuesday Blitz"]
[Site "Chess.com"]
[Date "2020.12.01"]
[Round "2"]
[White "anon481216"]
[Black "CoachHakia"]
[Result "1-0"]
[WhiteElo "2402"]
[BlackElo "2154"]
[TimeControl "180+1"]
[EndTime "10:17:47 PST"]
[Termination "anon481216 won on time"]

1. d4 {[%clk 0:03:00.7]} 1... f5 {[%clk 0:02:58.2]} 2. e4 {[%clk 0:03:00.3]}
2... fxe4 {[%clk 0:02:57.9]} 3. Nc3 {[%clk 0:02:59.7]} 3... Nf6 {[%clk
0:02:58.5]} 4. Bg5 {[%clk 0:02:58.9]} 4... g6 {[%clk 0:02:57.4]} 5. f3 {[%clk
0:02:48]} 5... e3 {[%clk 0:02:54.5]} 6. Bxe3 {[%clk 0:02:45.6]} 6... Bg7 {[%clk
0:02:54.6]} 7. Qd2 {[%clk 0:02:44.9]} 7... O-O {[%clk 0:02:27.8]} 8. Bd3 {[%clk
0:02:43.3]} 8... d5 {[%clk 0:02:25.5]} 9. h4 {[%clk 0:02:41.4]} 9... Bf5 {[%clk
0:02:22.6]} 10. Bxf5 {[%clk 0:02:36.7]} 10... gxf5 {[%clk 0:02:23.5]} 11. Nh3
{[%clk 0:02:34.6]} 11... c5 {[%clk 0:02:14.7]} 12. Nf4 {[%clk 0:02:22.9]} 12...
Qd7 {[%clk 0:01:52.6]} 13. dxc5 {[%clk 0:02:16.3]} 13... e6 {[%clk 0:01:45.9]}
14. O-O-O {[%clk 0:02:13.9]} 14... Nc6 {[%clk 0:01:46.1]} 15. Nb5 {[%clk
0:02:02.1]} 15... Ne5 {[%clk 0:01:35.7]} 16. Nd6 {[%clk 0:01:58.2]} 16... b6
{[%clk 0:01:18.5]} 17. Rhe1 {[%clk 0:01:38]} 17... Ng6 {[%clk 0:01:02.8]} 18.
Nxg6 {[%clk 0:01:05.7]} 18... hxg6 {[%clk 0:01:03.7]} 19. Kb1 {[%clk 0:00:41]}
19... bxc5 {[%clk 0:01:03.9]} 20. Bxc5 {[%clk 0:00:40.5]} 20... Rab8 {[%clk
0:00:44.9]} 21. Ba3 {[%clk 0:00:37.7]} 21... Ne8 {[%clk 0:00:31]} 22. Nxe8
{[%clk 0:00:36.8]} 22... Rfxe8 {[%clk 0:00:31.9]} 23. c3 {[%clk 0:00:33.7]}
23... Rec8 {[%clk 0:00:30.4]} 24. Ka1 {[%clk 0:00:32.9]} 24... Rc4 {[%clk
0:00:25.2]} 25. Qg5 {[%clk 0:00:23.4]} 25... Qf7 {[%clk 0:00:12.5]} 26. Rd3
{[%clk 0:00:16.1]} 26... Bf6 {[%clk 0:00:12.7]} 27. Qe3 {[%clk 0:00:13.5]} 27...
Bxh4 {[%clk 0:00:11.1]} 28. Rh1 {[%clk 0:00:12]} 28... Bf6 {[%clk 0:00:09.8]}
29. Bc5 {[%clk 0:00:08.9]} 29... Rc8 {[%clk 0:00:06.1]} 30. Bd4 {[%clk 0:00:09]}
30... Bxd4 {[%clk 0:00:06]} 31. Rxd4 {[%clk 0:00:09.3]} 31... Kg7 {[%clk
0:00:04.1]} 32. Qe5+ {[%clk 0:00:09]} 32... Kf8 {[%clk 0:00:03]} 33. Rh8+ {[%clk
0:00:08.6]} 33... Ke7 {[%clk 0:00:03.6]} 34. Rxc4 {[%clk 0:00:06.7]} 34... dxc4
{[%clk 0:00:03.7]} 35. Rxc8 {[%clk 0:00:06]} 35... Qf6 {[%clk 0:00:03.2]} 36.
Rc7+ {[%clk 0:00:05.9]} 1-0

[Event "*** Titled Tuesday Blitz"]
[Site "Chess.com"]
[Date "2020.12.01"]
[Round "2"]
[White "FelixBlohberger"]
[Black "Trickov"]
[Result "1-0"]
[WhiteElo "2635"]
[BlackElo "2348"]
[TimeControl "180+1"]
[EndTime "10:17:48 PST"]
[Termination "FelixBlohberger won on time"]

1. d4 {[%clk 0:03:00.7]} 1... d5 {[%clk 0:02:47.4]} 2. c4 {[%clk 0:03:00.2]}
2... c6 {[%clk 0:02:47]} 3. e3 {[%clk 0:02:58.2]} 3... Nf6 {[%clk 0:02:45.8]} 4.
Nf3 {[%clk 0:02:58]} 4... Bf5 {[%clk 0:02:44.2]} 5. Qb3 {[%clk 0:02:54.4]} 5...
Qb6 {[%clk 0:02:42.5]} 6. Nbd2 {[%clk 0:02:35.1]} 6... e6 {[%clk 0:02:40.6]} 7.
Be2 {[%clk 0:02:34]} 7... Nbd7 {[%clk 0:02:39.2]} 8. O-O {[%clk 0:02:33.9]} 8...
h6 {[%clk 0:02:38]} 9. Qd1 {[%clk 0:02:25.3]} 9... Be7 {[%clk 0:02:36.2]} 10. b3
{[%clk 0:02:25.9]} 10... O-O {[%clk 0:02:35.6]} 11. Bb2 {[%clk 0:02:26.5]} 11...
a5 {[%clk 0:02:35.3]} 12. a3 {[%clk 0:02:25.5]} 12... Rfe8 {[%clk 0:02:34]} 13.
Qc1 {[%clk 0:02:21.4]} 13... Bf8 {[%clk 0:02:30.7]} 14. Bc3 {[%clk 0:02:20.7]}
14... Ne4 {[%clk 0:02:27]} 15. Nxe4 {[%clk 0:02:19.5]} 15... Bxe4 {[%clk
0:02:25.4]} 16. Qb2 {[%clk 0:02:18.8]} 16... a4 {[%clk 0:02:01.7]} 17. Nd2
{[%clk 0:01:51.2]} 17... Bg6 {[%clk 0:01:53.7]} 18. b4 {[%clk 0:01:50.8]} 18...
Qc7 {[%clk 0:01:50]} 19. Rfc1 {[%clk 0:01:44.2]} 19... e5 {[%clk 0:01:21.4]} 20.
dxe5 {[%clk 0:01:38.2]} 20... Nxe5 {[%clk 0:01:17.9]} 21. cxd5 {[%clk
0:01:38.2]} 21... cxd5 {[%clk 0:01:11.5]} 22. Bd4 {[%clk 0:01:29.3]} 22... Qb8
{[%clk 0:01:08.1]} 23. Bxe5 {[%clk 0:01:08.3]} 23... Qxe5 {[%clk 0:01:04.7]} 24.
Qxe5 {[%clk 0:01:08.1]} 24... Rxe5 {[%clk 0:01:04]} 25. Nf3 {[%clk 0:01:07.1]}
25... Ree8 {[%clk 0:01:01.6]} 26. Rc7 {[%clk 0:00:59.8]} 26... Rec8 {[%clk
0:00:50.5]} 27. Rac1 {[%clk 0:00:56.3]} 27... Rxc7 {[%clk 0:00:49.9]} 28. Rxc7
{[%clk 0:00:56.2]} 28... b6 {[%clk 0:00:49]} 29. Nd4 {[%clk 0:00:53.4]} 29...
Bd6 {[%clk 0:00:29.9]} 30. Rc6 {[%clk 0:00:52.6]} 30... Be5 {[%clk 0:00:29.1]}
31. f3 {[%clk 0:00:31.2]} 31... Rb8 {[%clk 0:00:17.2]} 32. g3 {[%clk 0:00:27.2]}
32... f6 {[%clk 0:00:12.4]} 33. Kf2 {[%clk 0:00:26.6]} 33... Be8 {[%clk
0:00:11.9]} 34. Rc1 {[%clk 0:00:23.9]} 34... Bd7 {[%clk 0:00:11.6]} 35. f4
{[%clk 0:00:16.5]} 35... Bd6 {[%clk 0:00:11]} 36. Bf3 {[%clk 0:00:16.7]} 36...
Rc8 {[%clk 0:00:06]} 37. Bxd5+ {[%clk 0:00:17.3]} 37... Kf8 {[%clk 0:00:04.2]}
38. Rxc8+ {[%clk 0:00:18]} 38... Bxc8 {[%clk 0:00:02.1]} 39. Bc6 {[%clk
0:00:18.9]} 1-0

[Event "*** Titled Tuesday Blitz"]
[Site "Chess.com"]
[Date "2020.12.01"]
[Round "2"]
[White "Blackmind96"]
[Black "AldokhinIvan"]
[Result "1-0"]
[WhiteElo "2771"]
[BlackElo "2491"]
[TimeControl "180+1"]
[EndTime "10:17:51 PST"]
[Termination "Blackmind96 won by checkmate"]

1. d4 {[%clk 0:03:00.9]} 1... Nf6 {[%clk 0:02:50.2]} 2. c4 {[%clk 0:03:00.3]}
2... g6 {[%clk 0:02:48.5]} 3. f3 {[%clk 0:03:00.2]} 3... Bg7 {[%clk 0:02:48.9]}
4. e4 {[%clk 0:02:59.8]} 4... d6 {[%clk 0:02:49.3]} 5. Nc3 {[%clk 0:03:00.4]}
5... O-O {[%clk 0:02:48]} 6. Be3 {[%clk 0:03:00.6]} 6... Nc6 {[%clk 0:02:38]} 7.
Qd2 {[%clk 0:02:59.8]} 7... Re8 {[%clk 0:02:36.2]} 8. Nge2 {[%clk 0:02:55.2]}
8... a6 {[%clk 0:02:35.2]} 9. d5 {[%clk 0:02:41.4]} 9... Ne5 {[%clk 0:02:30.3]}
10. Nd4 {[%clk 0:02:41]} 10... c5 {[%clk 0:02:16.5]} 11. dxc6 {[%clk 0:02:38.5]}
11... bxc6 {[%clk 0:02:13.1]} 12. Be2 {[%clk 0:02:34.7]} 12... c5 {[%clk
0:02:05.1]} 13. Nc2 {[%clk 0:02:32.6]} 13... Be6 {[%clk 0:02:05.1]} 14. b3
{[%clk 0:02:28.4]} 14... Bd7 {[%clk 0:01:49.8]} 15. O-O {[%clk 0:02:20.6]} 15...
a5 {[%clk 0:01:49.8]} 16. a4 {[%clk 0:02:19.6]} 16... h5 {[%clk 0:01:36.1]} 17.
h3 {[%clk 0:02:12.4]} 17... Qc8 {[%clk 0:01:25.3]} 18. Kh2 {[%clk 0:02:05.6]}
18... Qb8 {[%clk 0:01:22.4]} 19. Kg1 {[%clk 0:01:57.7]} 19... Qc8 {[%clk
0:01:20.7]} 20. f4 {[%clk 0:01:53.7]} 20... Nc6 {[%clk 0:01:15.4]} 21. Bf3
{[%clk 0:01:48.5]} 21... Nb4 {[%clk 0:01:12]} 22. Rae1 {[%clk 0:01:34.9]} 22...
Bc6 {[%clk 0:00:57.7]} 23. e5 {[%clk 0:01:07.7]} 23... dxe5 {[%clk 0:00:56.4]}
24. fxe5 {[%clk 0:01:07.4]} 24... Nd7 {[%clk 0:00:56.6]} 25. e6 {[%clk
0:01:05.1]} 25... fxe6 {[%clk 0:00:51.5]} 26. Nxb4 {[%clk 0:00:58.7]} 26... cxb4
{[%clk 0:00:38.2]} 27. Ne4 {[%clk 0:00:59]} 27... Ne5 {[%clk 0:00:36.7]} 28. Bf4
{[%clk 0:00:49.7]} 28... Rf8 {[%clk 0:00:29.6]} 29. Bxe5 {[%clk 0:00:33.2]}
29... Bxe5 {[%clk 0:00:27.1]} 30. Qg5 {[%clk 0:00:33.8]} 30... Bd4+ {[%clk
0:00:21.4]} 31. Kh1 {[%clk 0:00:32]} 31... Kh7 {[%clk 0:00:15.3]} 32. Qxe7+
{[%clk 0:00:29.9]} 32... Kh6 {[%clk 0:00:09.8]} 33. Ng5 {[%clk 0:00:21.5]} 33...
Bf6 {[%clk 0:00:06.1]} 34. Qh7+ {[%clk 0:00:15.3]} 34... Kxg5 {[%clk 0:00:05.1]}
35. g3 {[%clk 0:00:13.6]} 35... Bxf3+ {[%clk 0:00:03.7]} 36. Rxf3 {[%clk
0:00:14.5]} 36... Qc6 {[%clk 0:00:04.1]} 37. Kg2 {[%clk 0:00:09.6]} 37... Be5
{[%clk 0:00:03.3]} 38. h4+ {[%clk 0:00:07.5]} 38... Kg4 {[%clk 0:00:01.4]} 39.
Qxg6# {[%clk 0:00:07.4]} 1-0

[Event "*** Titled Tuesday Blitz"]
[Site "Chess.com"]
[Date "2020.12.01"]
[Round "2"]
[White "kagg1125"]
[Black "leoduarte"]
[Result "1-0"]
[WhiteElo "2546"]
[BlackElo "2292"]
[TimeControl "180+1"]
[EndTime "10:17:51 PST"]
[Termination "kagg1125 won by resignation"]

1. e4 {[%clk 0:03:00.2]} 1... c5 {[%clk 0:02:59.3]} 2. Nf3 {[%clk 0:02:57.8]}
2... e6 {[%clk 0:02:59.5]} 3. g3 {[%clk 0:02:54.5]} 3... d5 {[%clk 0:02:49.3]}
4. exd5 {[%clk 0:02:44.1]} 4... exd5 {[%clk 0:02:50.2]} 5. d4 {[%clk 0:02:43.9]}
5... Nc6 {[%clk 0:02:49.2]} 6. Bg2 {[%clk 0:02:42.8]} 6... Nf6 {[%clk
0:02:46.3]} 7. O-O {[%clk 0:02:23.9]} 7... cxd4 {[%clk 0:02:45.8]} 8. Nxd4
{[%clk 0:02:24.8]} 8... Be7 {[%clk 0:02:44.3]} 9. Re1 {[%clk 0:02:17.4]} 9...
O-O {[%clk 0:02:43.8]} 10. Nc3 {[%clk 0:02:13.9]} 10... Bg4 {[%clk 0:02:31.3]}
11. Qd3 {[%clk 0:02:09]} 11... Nb4 {[%clk 0:01:32.5]} 12. Qd2 {[%clk 0:02:07.3]}
12... Rc8 {[%clk 0:01:31.8]} 13. a3 {[%clk 0:02:05.5]} 13... Nc6 {[%clk
0:01:29.6]} 14. Qd3 {[%clk 0:01:50.5]} 14... Nxd4 {[%clk 0:00:52.5]} 15. Qxd4
{[%clk 0:01:51.4]} 15... Bc5 {[%clk 0:00:50.4]} 16. Qd3 {[%clk 0:01:50.8]} 16...
d4 {[%clk 0:00:32.3]} 17. Ne4 {[%clk 0:01:48.9]} 17... Nxe4 {[%clk 0:00:29.1]}
18. Bxe4 {[%clk 0:01:49.8]} 18... h6 {[%clk 0:00:28.9]} 19. Bd2 {[%clk
0:01:45.8]} 19... Qf6 {[%clk 0:00:22.2]} 20. Bg2 {[%clk 0:01:37.5]} 20... Qb6
{[%clk 0:00:16]} 21. b4 {[%clk 0:01:35.8]} 21... Bd6 {[%clk 0:00:14.1]} 22. h3
{[%clk 0:01:30.4]} 22... Bh5 {[%clk 0:00:14.1]} 23. Be4 {[%clk 0:01:20.9]} 23...
Qc7 {[%clk 0:00:13.5]} 24. Kg2 {[%clk 0:01:19]} 24... Bg6 {[%clk 0:00:11.8]} 25.
Qxd4 {[%clk 0:01:10]} 25... Be5 {[%clk 0:00:11.2]} 26. Qe3 {[%clk 0:01:05.2]}
26... Bxe4+ {[%clk 0:00:11.3]} 27. Qxe4 {[%clk 0:01:05.3]} 27... Bxa1 {[%clk
0:00:12.2]} 28. Rxa1 {[%clk 0:01:05.3]} 28... Qxc2 {[%clk 0:00:12.8]} 29. Qxc2
{[%clk 0:01:05.5]} 29... Rxc2 {[%clk 0:00:12.2]} 30. Be3 {[%clk 0:01:06.4]}
30... a6 {[%clk 0:00:12]} 31. a4 {[%clk 0:01:05.1]} 31... Rfc8 {[%clk
0:00:11.5]} 32. b5 {[%clk 0:01:04.9]} 32... axb5 {[%clk 0:00:11.4]} 33. axb5
{[%clk 0:01:05.8]} 33... Rb2 {[%clk 0:00:11.9]} 34. b6 {[%clk 0:01:06]} 34...
Rd8 {[%clk 0:00:12]} 35. Ra7 {[%clk 0:01:04.7]} 35... Rd7 {[%clk 0:00:12.2]} 36.
Ra8+ {[%clk 0:01:05]} 36... Kh7 {[%clk 0:00:12.1]} 37. Rc8 {[%clk 0:01:05.1]}
37... h5 {[%clk 0:00:11.7]} 38. h4 {[%clk 0:01:05]} 38... g6 {[%clk 0:00:11.6]}
39. Kf3 {[%clk 0:01:03.8]} 39... Rb3 {[%clk 0:00:11.8]} 40. Kg2 {[%clk
0:01:00.9]} 40... Rbd3 {[%clk 0:00:12.2]} 41. Kf3 {[%clk 0:01:00.6]} 41... R3d5
{[%clk 0:00:12.7]} 42. Kg2 {[%clk 0:00:59.2]} 42... Rf5 {[%clk 0:00:13]} 43. Rc7
{[%clk 0:00:58]} 43... Rfd5 {[%clk 0:00:12.2]} 44. Rc4 {[%clk 0:00:56.2]} 44...
Kg7 {[%clk 0:00:12.3]} 45. Kf3 {[%clk 0:00:55.8]} 45... Kg8 {[%clk 0:00:08.7]}
46. Ke4 {[%clk 0:00:52.3]} 46... Kg7 {[%clk 0:00:08.6]} 47. Bd4+ {[%clk
0:00:50.9]} 47... Kf8 {[%clk 0:00:07.6]} 48. Bf6 {[%clk 0:00:46.6]} 48... Rd8
{[%clk 0:00:05.3]} 49. Bxd8 {[%clk 0:00:46.1]} 49... Rxd8 {[%clk 0:00:05.9]} 50.
Rc7 {[%clk 0:00:46.5]} 50... Rd7 {[%clk 0:00:06.3]} 51. Rxd7 {[%clk 0:00:46.3]}
1-0